fUSD/lending_fUSD_20240905
["ID","MTS","AMOUNT","RATE_DAILY","PERIOD"]
[337203616,1725499848812,-511.83331915,0.0001489,2]
[337203617,1725499848822,-500.0,0.0001489,2]
[337203618,1725499848831,-500.0,0.0001489,2]
[337203619,1725499848840,-500.0,0.0001489,2]
[337203620,1725499848849,-544.71,0.0001489,2]
[337203621,1725499848859,-500.0,0.0001489,2]
[337203622,1725499848868,-500.0,0.0001489,2]
[337203623,1725499848878,-691.61,0.0001489,2]
[337203624,1725499848887,-500.0,0.0001489,2]
[337203625,1725499848896,-618.57,0.0001489,2]
[337203626,1725499848905,-532.69018141,0.0001489,2]
[337203627,1725499848915,-500.0,0.0001489,2]
[337203628,1725499848924,-266.84672263,0.0001489,2]
[337203629,1725499848933,-500.0,0.0001489,2]
[337203630,1725499848942,-868.1,0.0001489,2]
[337203631,1725499848952,-500.0,0.0001489,2]
[337203632,1725499848961,-528.60343055,0.0001489,2]
[337203633,1725499848970,-698.95,0.0001489,2]
[337203634,1725499848980,-500.0,0.0001489,2]
[337203635,1725499848989,-500.0,0.0001489,2]
[337203636,1725499848998,-3102.6,0.0001489,2]
[337203637,1725499849008,-500.0,0.0001489,2]
[337203638,1725499849017,-500.0,0.0001489,2]
[337203639,1725499849026,-3249.89,0.0001489,2]
[337203640,1725499849035,-500.0,0.0001489,2]
[337203641,1725499849044,-500.0,0.0001489,2]
[337203642,1725499849054,-500.0,0.0001489,2]
[337203643,1725499849063,-520.76227965,0.0001489,2]
[337203644,1725499849072,-500.0,0.0001489,2]
[337203645,1725499849081,-500.0,0.0001489,2]
[337203646,1725499849090,-500.0,0.0001489,2]
[337203647,1725499849099,-152.25975904,0.0001489,2]
[337203648,1725499849108,-500.0,0.0001489,2]
[337203649,1725499849118,-500.0,0.0001489,2]
[337203650,1725499849128,-500.0,0.0001489,2]
[337203651,1725499849137,-1279.21,0.0001489,2]
[337203652,1725499849219,-500.0,0.0001489,2]
[337203653,1725499849228,-500.0,0.0001489,2]
[337203654,1725499849237,-500.0,0.0001489,2]
[337203655,1725499849247,-500.0,0.0001489,2]
[337203656,1725499849256,-754.65,0.0001489,2]
[337203657,1725499849265,-500.0,0.0001489,2]
[337203658,1725499849275,-1426.28,0.0001489,2]
[337203659,1725499849284,-500.0,0.0001489,2]
[337203660,1725499849293,-500.0,0.0001489,2]
[337203661,1725499849302,-500.0,0.0001489,2]
[337203662,1725499849311,-196.89771019,0.0001489,2]
[337203663,1725499849320,-500.0,0.0001489,2]
[337203664,1725499849329,-2965.78,0.0001489,2]
[337203665,1725499849339,-5288.71,0.0001489,2]
[337203666,1725499849348,-2018.99,0.0001489,2]
[337203667,1725499849360,-500.0,0.0001489,2]
[337203668,1725499849369,-500.0,0.0001489,2]
[337203669,1725499849378,-500.0,0.0001489,2]
[337203670,1725499849387,-789.55,0.0001489,2]
[337203671,1725499849396,-500.0,0.0001489,2]
[337203672,1725499849405,-775.72,0.0001489,2]
[337203673,1725499849414,-500.0,0.0001489,2]
[337203674,1725499849424,-1066.15,0.0001489,2]
[337203675,1725499849433,-500.0,0.0001489,2]
[337203676,1725499849442,-869.3,0.0001489,2]
[337203677,1725499849452,-500.0,0.0001489,2]
[337203678,1725499849461,-542.27,0.0001489,2]
[337203679,1725499849471,-500.0,0.0001489,2]
[337203680,1725499849480,-9931.35,0.0001489,2]
[337203681,1725499849489,-500.0,0.0001489,2]
[337203682,1725499849498,-500.0,0.0001489,2]
[337203683,1725499849507,-500.0,0.0001489,2]
[337203684,1725499849517,-268.22,0.0001489,2]
[337203685,1725499849526,-851.81,0.0001489,2]
[337203686,1725499849536,-500.0,0.0001489,2]
[337203687,1725499849546,-500.0,0.0001489,2]
[337203688,1725499849555,-500.0,0.0001489,2]
[337203689,1725499849564,-500.0,0.0001489,2]
[337203690,1725499849574,-500.0,0.0001489,2]
[337203691,1725499849583,-500.0,0.0001489,2]
[337203692,1725499849593,-1915.76,0.0001489,2]
[337203693,1725499849603,-500.0,0.0001489,2]
[337203694,1725499849612,-2944.76,0.0001489,2]
[337203695,1725499849622,-500.0,0.0001489,2]
[337203696,1725499849633,-507.00402085,0.0001489,2]
[337203697,1725499849642,-1491.94,0.0001489,2]
[337203698,1725499849652,-500.0,0.0001489,2]
[337203699,1725499849661,-1400.06,0.0001489,2]
[337203700,1725499849670,-500.0,0.0001489,2]
[337203701,1725499849679,-500.0,0.0001489,2]
[337203702,1725499849689,-500.0,0.0001489,2]
[337203703,1725499849698,-500.0,0.0001489,2]
[337203704,1725499849708,-500.0,0.0001489,2]
[337203705,1725499849718,-500.0,0.0001489,2]
[337203706,1725499849728,-500.0,0.0001489,2]
[337203707,1725499849738,-500.0,0.0001489,2]
[337203708,1725499849747,-1095.43,0.0001489,2]
[337203709,1725499849757,-500.0,0.0001489,2]
[337203710,1725499849766,-1344.35,0.0001489,2]
[337203711,1725499849775,-879.59,0.0001489,2]
[337203712,1725499849784,-527.51734712,0.0001489,2]
[337203713,1725499849793,-1331.6,0.0001489,2]
[337203714,1725499849803,-500.0,0.0001489,2]
[337203715,1725499849812,-760.89,0.0001489,2]
[337203716,1725499849821,-500.0,0.0001489,2]
[337203717,1725499849831,-500.0,0.0001489,2]
[337203718,1725499849840,-500.0,0.0001489,2]
[337203719,1725499849849,-2261.89,0.0001489,2]
[337203720,1725499849858,-500.0,0.0001489,2]
[337203721,1725499849869,-500.0,0.0001489,2]
[337203722,1725499849880,-500.0,0.0001489,2]
[337203723,1725499849889,-1335.99,0.0001489,2]
[337203724,1725499849899,-151.0,0.0001489,2]
[337203725,1725499849908,-151.0,0.0001489,2]
[337203726,1725499849917,-155.0,0.0001489,2]
[337203727,1725499849926,-151.0,0.0001489,2]
[337203728,1725499849936,-188.75297818,0.0001489,2]
[337203729,1725499849945,-500.0,0.0001489,2]
[337203730,1725499849954,-236.737176,0.0001489,2]
[337203731,1725499849963,-1165.999936,0.0001489,2]
[337203732,1725499849973,-236.737176,0.0001489,2]
[337203733,1725499849982,-1165.999936,0.0001489,2]
[337203734,1725499849991,-367.2059694,0.0001489,2]
[337203735,1725499850000,-150.0,0.0001489,2]
[337203736,1725499850009,-4837.029733,0.0001489,2]
[337203737,1725499850019,-541.372048,0.0001489,2]
[337203738,1725499850028,-500.0,0.0001489,2]
[337203739,1725499850038,-516.764228,0.0001489,2]
[337203740,1725499850047,-516.764228,0.0001489,2]
[337203741,1725499850057,-260.457054,0.0001489,2]
[337203742,1725499850066,-756.23,0.0001489,2]
[337203743,1725499850075,-178.955583,0.0001489,2]
[337203744,1725499850084,-151.0,0.0001489,2]
[337203745,1725499850094,-798.474883,0.0001489,2]
[337203746,1725499850103,-798.474883,0.0001489,2]
[337203747,1725499850112,-500.0,0.0001489,2]
[337203748,1725499850121,-699.983479,0.0001489,2]
[337203749,1725499850132,-151.0,0.0001489,2]
[337203750,1725499850149,-1109.48,0.0001489,2]
[337203751,1725499850159,-1419.26,0.0001489,2]
[337203752,1725499850168,-20000.0,0.0001489,2]
[337203753,1725499850178,-1662.59265937,0.00014891,2]
[337203754,1725499850187,-500.0,0.00014891,2]
[337203755,1725499850197,-500.0,0.00014891,2]
[337203756,1725499850206,-1430.56,0.00014891,2]
[337203757,1725499850216,-1430.56,0.00014891,2]
[337203758,1725499850225,-908.28,0.00014891,2]
[337203759,1725499850235,-500.0,0.00014891,2]
[337203760,1725499850244,-908.28,0.00014891,2]
[337203761,1725499850254,-500.0,0.00014891,2]
[337203762,1725499850264,-749.5,0.00014891,2]
[337203763,1725499850273,-657.2,0.00014891,2]
[337203764,1725499850283,-749.5,0.00014891,2]
[337203765,1725499850292,-657.2,0.00014891,2]
[337203766,1725499850301,-500.0,0.00014891,2]
[337203767,1725499850311,-500.0,0.00014891,2]
[337203768,1725499850322,-500.0,0.00014891,2]
[337203769,1725499850331,-774.08,0.00014891,2]
[337203770,1725499850341,-774.08,0.00014891,2]
[337203771,1725499850351,-510.9,0.00014891,2]
[337203772,1725499850362,-510.9,0.00014891,2]
[337203773,1725499850371,-2081.3,0.00014891,2]
[337203774,1725499850380,-2081.3,0.00014891,2]
[337203775,1725499850391,-500.0,0.00014891,2]
[337203776,1725499850403,-500.0,0.00014891,2]
[337203777,1725499850412,-500.0,0.00014891,2]
[337203778,1725499850423,-533.9,0.00014891,2]
[337203779,1725499850435,-533.9,0.00014891,2]
[337203780,1725499850446,-1510.15,0.00014891,2]
[337203781,1725499850456,-500.0,0.00014891,2]
[337203782,1725499850466,-500.0,0.00014891,2]
[337203783,1725499850476,-568.98,0.00014891,2]
[337203784,1725499850487,-500.0,0.00014891,2]
[337203785,1725499850497,-555.39,0.00014891,2]
[337203786,1725499850507,-568.98,0.00014891,2]
[337203787,1725499850517,-1510.15,0.00014891,2]
[337203788,1725499850528,-555.39,0.00014891,2]
[337203789,1725499850538,-1014.16,0.00014891,2]
[337203790,1725499850548,-500.83,0.00014891,2]
[337203791,1725499850559,-1014.16,0.00014891,2]
[337203792,1725499850569,-500.83,0.00014891,2]
[337203793,1725499850579,-824.43,0.00014891,2]
[337203794,1725499850589,-824.43,0.00014891,2]
[337203795,1725499850599,-1256.44,0.00014891,2]
[337203796,1725499850609,-511.4,0.00014891,2]
[337203797,1725499850619,-1256.44,0.00014891,2]
[337203798,1725499850629,-511.4,0.00014891,2]
[337203799,1725499850648,-1175.31,0.00014891,2]
[337203800,1725499850657,-1175.31,0.00014891,2]
[337203801,1725499850667,-1175.31,0.00014891,2]
[337203802,1725499850677,-3214.3,0.00014891,2]
[337203803,1725499850687,-3214.3,0.00014891,2]
[337203804,1725499850697,-500.0,0.00014891,2]
[337203805,1725499850706,-500.0,0.00014891,2]
[337203806,1725499850716,-315.20808546,0.00014891,2]
[337203807,1725499850726,-500.0,0.00014891,2]
[337203808,1725499850736,-500.0,0.00014891,2]
[337203809,1725499850745,-500.0,0.00014891,2]
[337203810,1725499850755,-500.0,0.00014891,2]
[337203811,1725499850765,-500.0,0.00014891,2]
[337203812,1725499850775,-500.0,0.00014891,2]
[337203813,1725499850785,-500.0,0.00014891,2]
[337203814,1725499850795,-500.0,0.00014891,2]
[337203815,1725499850804,-568.54,0.00014891,2]
[337203816,1725499850814,-568.54,0.00014891,2]
[337203817,1725499850824,-2452.82,0.00014891,2]
[337203818,1725499850833,-2452.82,0.00014891,2]
[337203819,1725499850844,-500.0,0.00014891,2]
[337203820,1725499850854,-500.0,0.00014891,2]
[337203821,1725499850864,-800.51,0.00014891,2]
[337203822,1725499850875,-800.51,0.00014891,2]
[337203823,1725499850886,-568.99,0.00014891,2]
[337203824,1725499850896,-568.99,0.00014891,2]
[337203825,1725499850906,-510.09,0.00014891,2]
[337203826,1725499850916,-510.09,0.00014891,2]
[337203827,1725499850926,-510.09,0.00014891,2]
[337203828,1725499850936,-500.34,0.00014891,2]
[337203829,1725499850946,-500.34,0.00014891,2]
[337203830,1725499850955,-1163.12,0.00014891,2]
[337203831,1725499850964,-1163.12,0.00014891,2]
[337203832,1725499850974,-1163.12,0.00014891,2]
[337203833,1725499850984,-1163.12,0.00014891,2]
[337203834,1725499850993,-1163.28055966,0.00014891,2]
[337203835,1725499851004,-1737.85,0.00014891,2]
[337203836,1725499851014,-1737.85,0.00014891,2]
[337203837,1725499851025,-500.0,0.00014891,2]
[337203838,1725499851035,-500.0,0.00014891,2]
[337203839,1725499851045,-2912.57,0.00014891,2]
[337203840,1725499851056,-2912.57,0.00014891,2]
[337203841,1725499851066,-2743.76,0.00014891,2]
[337203842,1725499851075,-2743.76,0.00014891,2]
[337203843,1725499851085,-500.0,0.00014891,2]
[337203844,1725499851095,-500.0,0.00014891,2]
[337203845,1725499851105,-500.0,0.00014891,2]
[337203846,1725499851115,-500.0,0.00014891,2]
[337203847,1725499851125,-500.0,0.00014891,2]
[337203848,1725499851135,-500.0,0.00014891,2]
[337203849,1725499851145,-500.0,0.00014891,2]
[337203850,1725499851155,-2136.38,0.00014891,2]
[337203851,1725499851164,-2136.38,0.00014891,2]
[337203852,1725499851175,-646.41807979,0.00014891,2]
[337203853,1725499851184,-833.02,0.00014891,2]
[337203854,1725499851194,-833.02,0.00014891,2]
[337203855,1725499851203,-616.93,0.00014891,2]
[337203856,1725499851213,-616.93,0.00014891,2]
[337203857,1725499851223,-1639.06,0.00014891,2]
[337203858,1725499851232,-1639.06,0.00014891,2]
[337203859,1725499851241,-1720.65,0.00014891,2]
[337203860,1725499851251,-1720.65,0.00014891,2]
[337203861,1725499851260,-515.95,0.00014891,2]
[337203862,1725499851269,-515.95,0.00014891,2]
[337203863,1725499851279,-662.66,0.00014891,2]
[337203864,1725499851289,-662.66,0.00014891,2]
[337203865,1725499851298,-568.62,0.00014891,2]
[337203866,1725499851307,-568.62,0.00014891,2]
[337203867,1725499851317,-1035.91,0.00014891,2]
[337203868,1725499851326,-1078.74,0.00014891,2]
[337203869,1725499851336,-1078.74,0.00014891,2]
[337203870,1725499851348,-1635.58,0.00014891,2]
[337203871,1725499851358,-1635.58,0.00014891,2]
[337203872,1725499851367,-500.0,0.00014891,2]
[337203873,1725499851377,-500.0,0.00014891,2]
[337203874,1725499851388,-1000.0,0.00014891,2]
[337203875,1725499851397,-1000.0,0.00014891,2]
[337203876,1725499851407,-1000.0,0.00014891,2]
[337203877,1725499851416,-1000.0,0.00014891,2]
[337203878,1725499851426,-1000.0,0.00014891,2]
[337203879,1725499851435,-1000.0,0.00014891,2]
[337203880,1725499851446,-1000.0,0.00014891,2]
[337203881,1725499851456,-1000.0,0.00014891,2]
[337203882,1725499851466,-1000.0,0.00014891,2]
[337203883,1725499851476,-1000.0,0.00014891,2]
[337203884,1725499851485,-1000.0,0.00014891,2]
[337203885,1725499851494,-1000.0,0.00014891,2]
[337203886,1725499851503,-1000.0,0.00014891,2]
[337203887,1725499851512,-654.80550174,0.00014891,2]
[337203888,1725499851522,-500.0,0.00014891,2]
[337203889,1725499851531,-500.0,0.00014891,2]
[337203890,1725499851541,-500.0,0.00014891,2]
[337203891,1725499851550,-500.0,0.00014891,2]
[337203892,1725499851560,-500.0,0.00014891,2]
[337203893,1725499851569,-500.0,0.00014891,2]
[337203894,1725499851579,-500.0,0.00014891,2]
[337203895,1725499851588,-500.0,0.00014891,2]
[337203896,1725499851597,-523.91323674,0.00014891,2]
[337203897,1725499851607,-500.0,0.00014891,2]
[337203898,1725499851616,-522.33,0.00014891,2]
[337203899,1725499851625,-515.07161384,0.00014891,2]
[337203900,1725499851635,-553.19851735,0.00014891,2]
[337203901,1725499851644,-500.0,0.00014891,2]
[337203902,1725499851653,-500.0,0.00014891,2]
[337203903,1725499851663,-500.0,0.00014891,2]
[337203904,1725499851673,-500.0,0.00014891,2]
[337203905,1725499851682,-319.72,0.00014891,2]
[337203906,1725499851691,-500.0,0.00014891,2]
[337203907,1725499851701,-500.0,0.00014891,2]
[337203908,1725499851710,-500.0,0.00014891,2]
[337203909,1725499851719,-500.0,0.00014891,2]
[337203910,1725499851728,-500.0,0.00014891,2]
[337203911,1725499851736,-500.0,0.00014891,2]
[337203912,1725499851745,-500.0,0.00014891,2]
[337203913,1725499851755,-444.2,0.00014891,2]
[337203914,1725499851763,-500.0,0.00014891,2]
[337203915,1725499851772,-500.0,0.00014891,2]
[337203916,1725499851781,-500.0,0.00014891,2]
[337203917,1725499851790,-500.0,0.00014891,2]
[337203918,1725499851799,-500.0,0.00014891,2]
[337203919,1725499851808,-1862.57,0.00014891,2]
[337203920,1725499851817,-500.0,0.00014891,2]
[337203921,1725499851826,-500.0,0.00014891,2]
[337203922,1725499851835,-250.2,0.00014891,2]
[337203923,1725499851844,-500.0,0.00014891,2]
[337203924,1725499851853,-500.0,0.00014891,2]
[337203925,1725499851861,-1474.41,0.00014891,2]
[337203926,1725499851871,-719.24,0.00014891,2]
[337203927,1725499851881,-1865.89,0.00014891,2]
[337203928,1725499851890,-500.0,0.00014891,2]
[337203929,1725499851899,-500.0,0.00014891,2]
[337203930,1725499851908,-500.0,0.00014891,2]
[337203931,1725499851917,-1003.74,0.00014891,2]
[337203932,1725499851927,-500.0,0.00014891,2]
[337203933,1725499851935,-1176.51,0.00014891,2]
[337203934,1725499851944,-1198.38,0.00014891,2]
[337203935,1725499851953,-500.0,0.00014891,2]
[337203936,1725499851962,-705.71,0.00014891,2]
[337203937,1725499851971,-645.46,0.00014891,2]
[337203938,1725499851981,-2593.36,0.00014891,2]
[337203939,1725499851990,-5343.63,0.00014891,2]
[337203940,1725499851998,-1300.35,0.00014891,2]
[337203941,1725499852008,-2892.13,0.00014891,2]
[337203942,1725499852017,-500.0,0.00014891,2]
[337203943,1725499852026,-775.12,0.00014891,2]
[337203944,1725499852036,-500.0,0.00014891,2]
[337203945,1725499852045,-500.0,0.00014891,2]
[337203946,1725499852054,-529.0,0.00014891,2]
[337203947,1725499852063,-500.0,0.00014891,2]
[337203948,1725499852073,-500.0,0.00014891,2]
[337203949,1725499852082,-500.0,0.00014891,2]
[337203950,1725499852091,-500.0,0.00014891,2]
[337203951,1725499852100,-500.0,0.00014891,2]
[337203952,1725499852108,-1544.76,0.00014891,2]
[337203953,1725499852117,-962.78,0.00014891,2]
[337203954,1725499852126,-1872.09,0.00014891,2]
[337203955,1725499852138,-537.9,0.00014891,2]
[337203956,1725499852147,-1714.32,0.00014891,2]
[337203957,1725499852155,-500.0,0.00014891,2]
[337203958,1725499852164,-500.0,0.00014891,2]
[337203959,1725499852173,-500.0,0.00014891,2]
[337203960,1725499852182,-500.0,0.00014891,2]
[337203961,1725499852191,-500.0,0.00014891,2]
[337203962,1725499852200,-500.0,0.00014891,2]
[337203963,1725499852209,-500.0,0.00014891,2]
[337203964,1725499852218,-583.37,0.00014891,2]
[337203965,1725499852227,-500.0,0.00014891,2]
[337203966,1725499852237,-3102.77,0.00014891,2]
[337203967,1725499852246,-500.0,0.00014891,2]
[337203968,1725499852256,-500.0,0.00014891,2]
[337203969,1725499852265,-500.0,0.00014891,2]
[337203970,1725499852274,-500.0,0.00014891,2]
[337203971,1725499852284,-500.0,0.00014891,2]
[337203972,1725499852294,-500.0,0.00014891,2]
[337203973,1725499852303,-838.18,0.00014891,2]
[337203974,1725499852313,-500.0,0.00014891,2]
[337203975,1725499852322,-500.0,0.00014891,2]
[337203976,1725499852331,-1287.92,0.00014891,2]
[337203977,1725499852340,-500.0,0.00014891,2]
[337203978,1725499852349,-500.0,0.00014891,2]
[337203979,1725499852363,-500.0,0.00014891,2]
[337203980,1725499852372,-2974.77,0.00014891,2]
[337203981,1725499852384,-1003.28,0.00014891,2]
[337203982,1725499852394,-305.80250835,0.00014891,2]
[337203983,1725499852403,-500.0,0.00014891,2]
[337203984,1725499852412,-500.0,0.00014891,2]
[337203985,1725499852422,-500.0,0.00014891,2]
[337203986,1725499852431,-370.779484,0.00014891,2]
[337203987,1725499852442,-370.779484,0.00014891,2]
[337203988,1725499852451,-151.0,0.00014891,2]
[337203989,1725499852461,-230.73543,0.00014891,2]
[337203990,1725499852471,-151.0,0.00014891,2]
[337203991,1725499852480,-230.73543,0.00014891,2]
[337203992,1725499852490,-151.0,0.00014891,2]
[337203993,1725499852500,-151.0,0.00014891,2]
[337203994,1725499852509,-151.0,0.00014891,2]
[337203995,1725499852519,-552.48347332,0.00014891,2]
[337203996,1725499852529,-500.0,0.00014891,2]
[337203997,1725499852539,-151.0,0.00014891,2]
[337203998,1725499852548,-287.85,0.00014891,2]
[337203999,1725499852558,-151.0,0.00014891,2]
[337204000,1725499852567,-411.9702969,0.00014891,2]
[337204001,1725499852577,-1832.572372,0.00014891,2]
[337204002,1725499852586,-500.0,0.00014891,2]
[337204003,1725499852596,-151.0,0.00014891,2]
[337204004,1725499852605,-1832.572372,0.00014891,2]
[337204005,1725499852615,-500.0,0.00014891,2]
[337204006,1725499852625,-500.0,0.00014891,2]
[337204007,1725499852638,-500.0,0.00014891,2]
[337204008,1725499852647,-151.0,0.00014891,2]
[337204009,1725499852657,-2543.27,0.00014891,2]
[337204010,1725499852666,-599.85037548,0.00014891,2]
[337204011,1725499852676,-346.061427,0.00014891,2]
[337204012,1725499852685,-151.0,0.00014891,2]
[337204013,1725499852695,-151.0,0.00014891,2]
[337204014,1725499852705,-346.061427,0.00014891,2]
[337204015,1725499852715,-271.976638,0.00014891,2]
[337204016,1725499852724,-3678.48,0.00014891,2]
[337204017,1725499852733,-543.44,0.00014891,2]
[337204018,1725499852743,-151.0,0.00014891,2]
[337204019,1725499852752,-165.528027,0.00014891,2]
[337204020,1725499852761,-2557.95,0.00014891,2]
[337204021,1725499852770,-500.0,0.00014891,2]
[337204022,1725499852779,-575.4,0.00014891,2]
[337204023,1725499852788,-500.0,0.00014891,2]
[337204024,1725499852798,-500.0,0.00014891,2]
[337204025,1725499852807,-151.0,0.00014891,2]
[337204026,1725499852817,-212.713621,0.00014891,2]
[337204027,1725499852827,-212.713621,0.00014891,2]
[337204028,1725499852838,-357.864108,0.00014891,2]
[337204029,1725499852847,-231.934886,0.00014891,2]
[337204030,1725499852856,-357.864108,0.00014891,2]
[337204031,1725499852866,-231.934886,0.00014891,2]
[337204032,1725499852877,-500.0,0.00014891,2]
[337204033,1725499852889,-151.0,0.00014891,2]
[337204034,1725499852898,-355.451856,0.00014891,2]
[337204035,1725499852907,-355.451856,0.00014891,2]
[337204036,1725499852916,-241.426485,0.00014891,2]
[337204037,1725499852926,-151.0,0.00014891,2]
[337204038,1725499852934,-241.426485,0.00014891,2]
[337204039,1725499852944,-318.499121,0.00014891,2]
[337204040,1725499852953,-318.499121,0.00014891,2]
[337204041,1725499852963,-151.0,0.00014891,2]
[337204042,1725499852972,-291.13841,0.00014891,2]
[337204043,1725499852982,-500.0,0.00014891,2]
[337204044,1725499852991,-151.0,0.00014891,2]
[337204045,1725499853001,-151.0,0.00014891,2]
[337204046,1725499853010,-151.0,0.00014891,2]
[337204047,1725499853019,-500.0,0.00014891,2]
[337204048,1725499853029,-500.0,0.00014891,2]
[337204049,1725499853038,-199.077694,0.00014891,2]
[337204050,1725499853047,-234.534679,0.00014891,2]
[337204051,1725499853056,-151.0,0.00014891,2]
[337204052,1725499853065,-199.077694,0.00014891,2]
[337204053,1725499853074,-234.534679,0.00014891,2]
[337204054,1725499853083,-246.38324,0.00014891,2]
[337204055,1725499853092,-151.0,0.00014891,2]
[337204056,1725499853101,-246.38324,0.00014891,2]
[337204057,1725499853110,-225.507515,0.00014891,2]
[337204058,1725499853120,-500.0,0.00014891,2]
[337204059,1725499853130,-151.0,0.00014891,2]
[337204060,1725499853142,-500.0,0.00014891,2]
[337204061,1725499853151,-500.0,0.00014891,2]
[337204062,1725499853160,-356.83127216,0.00014891,2]
[337204063,1725499853169,-500.0,0.00014891,2]
[337204064,1725499853179,-151.0,0.00014891,2]
[337204065,1725499853188,-156.544224,0.00014891,2]
[337204066,1725499853197,-151.0,0.00014891,2]
[337204067,1725499853207,-694.89,0.00014891,2]
[337204068,1725499853218,-151.0,0.00014891,2]
[337204069,1725499853227,-500.0,0.00014891,2]
[337204070,1725499853236,-236.737176,0.00014891,2]
[337204071,1725499853247,-1165.999936,0.00014891,2]
[337204072,1725499853258,-236.737176,0.00014891,2]
[337204073,1725499853267,-1165.999936,0.00014891,2]
[337204074,1725499853278,-151.0,0.00014891,2]
[337204075,1725499853288,-798.474883,0.00014891,2]
[337204076,1725499853297,-798.474883,0.00014891,2]
[337204077,1725499853307,-699.983479,0.00014891,2]
[337204078,1725499853317,-151.0,0.00014891,2]
[337204079,1725499853327,-1978.45,0.00014892,2]
[337204080,1725499853337,-1978.45,0.00014892,2]
[337204081,1725499853348,-1109.11,0.00014892,2]
[337204082,1725499853362,-1109.11,0.00014892,2]
[337204083,1725499853371,-500.0,0.00014892,2]
[337204084,1725499853381,-500.0,0.00014892,2]
[337204085,1725499853401,-2276.04,0.00014892,2]
[337204086,1725499853410,-2276.04,0.00014892,2]
[337204087,1725499853420,-1727.37,0.00014892,2]
[337204088,1725499853429,-1727.37,0.00014892,2]
[337204089,1725499853439,-789.54,0.00014892,2]
[337204090,1725499853449,-789.54,0.00014892,2]
[337204091,1725499853459,-500.0,0.00014892,2]
[337204092,1725499853468,-500.0,0.00014892,2]
[337204093,1725499853478,-500.0,0.00014892,2]
[337204094,1725499853487,-500.0,0.00014892,2]
[337204095,1725499853497,-1052.66,0.00014892,2]
[337204096,1725499853507,-1052.66,0.00014892,2]
[337204097,1725499853516,-727.65,0.00014892,2]
[337204098,1725499853526,-727.65,0.00014892,2]
[337204099,1725499853536,-500.0,0.00014892,2]
[337204100,1725499853545,-478.70438642,0.00014892,2]
[337204101,1725499853554,-847.26,0.00014892,2]
[337204102,1725499853564,-847.26,0.00014892,2]
[337204103,1725499853573,-972.62,0.00014892,2]
[337204104,1725499853583,-972.62,0.00014892,2]
[337204105,1725499853593,-588.32,0.00014892,2]
[337204106,1725499853603,-588.32,0.00014892,2]
[337204107,1725499853613,-690.51,0.00014892,2]
[337204108,1725499853623,-948.49,0.00014892,2]
[337204109,1725499853636,-718.09,0.00014892,2]
[337204110,1725499853646,-707.13,0.00014892,2]
[337204111,1725499853656,-1081.42,0.00014892,2]
[337204112,1725499853666,-589.04,0.00014892,2]
[337204113,1725499853676,-883.63,0.00014892,2]
[337204114,1725499853685,-819.6,0.00014892,2]
[337204115,1725499853695,-500.0,0.00014892,2]